bitfinex-derivatives/quotes_SOLF0:USTF0_20241226
["timestamp","ask_amount","ask_price","bid_price","bid_amount"]
[1735221763978,3.18,188.92,188.83,1.5982]
[1735221764172,2.6502,188.86,188.83,9.36059218]
[1735221764375,3.18,188.85,188.83,9.36059218]
[1735221765274,3.18,188.85,188.83,7.76239218]
[1735221766182,3.18,188.85,188.83,10.41299218]
[1735221766885,3.18,188.85,188.84,2.6505]
[1735221767079,1.558,188.97,188.83,7.76239218]
[1735221767284,7.76239218,188.95,188.88,7.76239218]
[1735221767481,2.6493,188.93,188.88,7.76239218]
[1735221767880,10.41169218,188.93,188.88,7.76239218]
[1735221768287,10.41169218,188.93,188.88,10.41229218]
[1735221770081,3.18,188.92,188.88,10.41229218]
[1735221770282,3.18,188.92,188.88,2.6499]
[1735221772687,5.8294,188.92,188.88,2.6499]
[1735221774087,3.18,188.92,188.88,2.6499]
[1735221774285,2.6492,188.93,188.85,1.6065]
[1735221774286,29.33608798,189.03,188.9,2.6495]
[1735221774491,12.12284641,188.99,188.87,12.12284641]
[1735221774682,2.6488,188.97,188.87,12.12284641]
[1735221774882,3.18,188.96,188.91,2.6494]
[1735221775586,3.18,188.95,188.91,2.6494]
[1735221777193,3.18,188.95,188.92,2.6493]
[1735221777490,3.18,188.95,188.87,12.12284641]
[1735221778385,3.18,188.95,188.89,2.6497]
[1735221778587,3.18,188.95,188.87,12.12284641]
[1735221778989,3.18,188.95,188.92,2.6492]
[1735221779986,1.5824,189.02,188.9,12.12284641]
[1735221780287,12.12284641,189.04,188.91,3.3101]
[1735221780486,3.18,189.03,188.93,12.12284641]
[1735221780693,3.18,189.03,188.94,1.6106]
[1735221781092,2.648,189.02,188.94,1.6106]
[1735221781293,3.18,189.01,188.94,1.6106]
[1735221781895,5.8281,189.01,188.97,2.6486]
[1735221782094,15.30284641,189.01,188.94,1.6106]
[1735221782391,15.30284641,189.01,188.91,3.3101]
[1735221782891,15.30284641,189.01,188.91,4.3295]
[1735221783192,15.30284641,189.01,188.91,1.68]
[1735221783193,2.6489,188.96,188.91,1.68]
[1735221783394,3.18,188.95,188.91,1.68]
[1735221784600,5.829,188.95,188.91,4.3294]
[1735221785390,5.829,188.95,188.91,2.6494]
[1735221785586,2.6494,188.92,188.88,2.6499]
[1735221785993,3.18,188.95,188.87,12.12284641]
[1735221786594,3.18,188.95,188.94,2.6491]
[1735221786795,3.18,188.95,188.87,12.12284641]
[1735221786990,3.18,188.95,188.9,12.12284641]
[1735221787488,3.18,188.95,188.94,2.6491]
[1735221788698,2.6484,188.99,188.94,2.6491]
[1735221788995,3.18,188.98,188.94,2.6491]
[1735221789191,3.18,188.98,188.91,1.5769]
[1735221789698,2.6488,188.96,188.91,4.2263]
[1735221790196,2.6489,188.95,188.92,7.75507595]
[1735221790595,7.75507595,188.96,188.9,7.75507595]
[1735221791499,2.6491,188.94,188.9,7.75507595]
[1735221791794,2.6492,188.93,188.9,10.40467595]
[1735221792393,2.6492,188.93,188.9,7.75507595]
[1735221792795,3.18,188.95,188.89,2.6498]
[1735221792796,2.6494,188.92,188.89,2.6498]
[1735221793198,7.75507595,188.92,188.86,7.75507595]
[1735221793391,7.75507595,188.92,188.84,9.40467595]
[1735221793601,7.75507595,188.88,188.81,2.6508]
[1735221793802,2.6503,188.86,188.81,2.6508]
[1735221794298,3.18,188.87,188.81,10.40587595]
[1735221794609,2.6502,188.86,188.81,10.40587595]
[1735221795500,2.6503,188.85,188.81,10.40587595]
[1735221795797,3.18,188.87,188.81,7.75507595]
[1735221796200,3.18,188.87,188.8,2.651]
[1735221796201,2.6504,188.85,188.8,2.651]
[1735221797708,2.6505,188.84,188.79,2.6512]
[1735221797902,3.18,188.87,188.78,13.75688508]
[1735221798704,3.18,188.87,188.79,2.6511]
[1735221799406,2.6505,188.84,188.79,2.6511]
[1735221802011,2.6504,188.85,188.79,2.6512]
[1735221802209,2.6504,188.85,188.78,13.75688508]
[1735221802210,3.18,188.87,188.78,13.75688508]
[1735221802409,3.18,188.87,188.78,1.6249]
[1735221802907,15.31198508,188.87,188.77,3.1686]
[1735221803109,12.13198508,188.84,188.72,12.13198508]
[1735221804314,2.6514,188.78,188.73,2.652]
[1735221804514,5.8314,188.78,188.73,2.652]
[1735221805110,3.18,188.78,188.72,12.13198508]
[1735221805907,2.6516,188.77,188.72,14.78398508]
[1735221806113,3.18,188.78,188.72,12.13198508]
[1735221806616,3.18,188.78,188.74,2.6519]
[1735221807424,3.18,188.78,188.72,12.13198508]
[1735221808122,7.30883134,188.87,188.75,12.13198508]
[1735221808315,3.18,188.86,188.75,12.13198508]
[1735221809121,2.6505,188.84,188.8,2.6509]
[1735221812919,3.18,188.86,188.75,12.13198508]
[1735221813123,3.18,188.85,188.83,2.6506]
[1735221813522,3.18,188.86,188.85,2.6503]
[1735221814128,3.18,188.87,188.85,2.6503]
[1735221814522,2.6498,188.89,188.85,2.6503]
[1735221814729,3.18,188.88,188.85,2.6503]
[1735221816229,55.1,188.91,188.81,12.13198508]
[1735221816430,3.18,188.92,188.84,12.13198508]
[1735221817730,3.18,188.92,188.9,2.6496]
[1735221818429,3.18,188.93,188.89,2.6498]
[1735221819129,3.18,188.93,188.92,2.6494]
[1735221819426,3.1072,188.99,188.87,12.13198508]
[1735221819633,3.18,188.98,188.9,12.13198508]
[1735221819929,3.18,188.98,188.95,2.6489]
[1735221820626,3.18,188.98,188.9,12.13198508]
[1735221820831,3.18,188.98,188.87,12.13198508]
[1735221821033,12.13198508,188.97,188.84,12.13198508]
[1735221821533,2.6493,188.93,188.88,2.6498]
[1735221821734,3.18,188.92,188.88,2.6498]
[1735221822136,3.18,188.92,188.89,2.6497]
[1735221822730,3.18,188.93,188.9,2.6496]
[1735221823131,3.18,188.93,188.87,12.13198508]
[1735221824034,3.18,188.93,188.9,2.6496]
[1735221825438,3.18,188.93,188.92,2.6494]
[1735221825634,3.18,188.98,188.9,12.13198508]
[1735221826437,3.18,188.98,188.91,4.8861]
[1735221827337,3.18,188.98,188.93,12.13198508]
[1735221827537,4.1984,189.02,188.93,12.13198508]
[1735221827841,3.18,189.01,188.93,12.13198508]
[1735221828341,3.18,189.01,188.97,2.6487]
[1735221829042,3.18,189.01,188.98,2.6485]
[1735221829242,3.18,189.01,188.93,12.13198508]
[1735221830536,2.6478,189.03,188.99,2.6484]
[1735221830737,3.18,189.02,188.96,12.13198508]
[1735221830938,29.33608798,189.11,189.02,2.6479]
[1735221831137,4.05733812,189.1,189.02,2.6479]
[1735221831339,3.18,189.1,189.02,2.6479]
[1735221831543,2.6474,189.06,189.02,2.6479]
[1735221831934,3.18,189.05,189.01,2.6481]
[1735221832440,5.8274,189.06,189.01,2.6481]
[1735221832843,3.18,189.06,188.99,12.13198508]
[1735221833438,3.18,189.07,188.99,12.13198508]
[1735221833639,1.6602,189.13,189.02,12.13198508]
[1735221833834,41.46807306,189.14,189.02,12.13198508]
[1735221833835,29.33608798,189.14,189.02,12.13198508]
[1735221834040,3.18,189.13,189.02,12.13198508]
[1735221835140,12.13198508,189.12,189.01,1.6173]
[1735221836542,2.6475,189.06,189.01,4.2654]
[1735221836742,5.8275,189.06,189.01,4.2654]
[1735221837444,5.8275,189.06,189.02,2.6479]
[1735221838345,3.18,189.06,189.04,2.6477]
[1735221839747,3.18,189.06,189.03,2.6478]
[1735221841442,3.18,189.06,189.01,2.648]
[1735221841652,3.18,189.06,188.97,12.13198508]
[1735221842048,2.6479,189.03,188.98,2.6484]
[1735221843554,3.18,189.06,188.97,12.13198508]
[1735221844447,2.6477,189.04,188.97,12.13198508]
[1735221844648,3.18,189.06,188.97,12.13198508]
[1735221845252,3.18,189.06,189.0,12.13198508]
[1735221845754,2.6471,189.08,189.0,12.13198508]
[1735221846052,1.6166,189.11,189.0,12.13198508]
[1735221846252,5.8268,189.1,189.06,2.6474]
[1735221846447,1.6166,189.11,189.06,2.6474]
[1735221846649,3.18,189.1,189.03,12.13198508]
[1735221847549,13.68878508,189.15,189.02,1.5596]
[1735221847550,1.5597,189.17,189.06,12.13198508]
[1735221847751,3.18,189.16,189.11,2.6466]
[1735221847955,3.18,189.16,189.06,12.13198508]
[1735221848349,1.5597,189.17,189.06,12.13198508]
[1735221848551,3.18,189.16,189.06,12.13198508]
[1735221849654,2.6462,189.15,189.1,2.6467]
[1735221849853,3.18,189.16,189.06,12.13198508]
[1735221850054,3.18,189.15,189.08,2.647]
[1735221850350,3.18,189.18,189.09,12.13198508]
[1735221850547,3.18,189.18,189.15,2.6461]
[1735221850745,1.5606,189.21,189.12,12.13198508]
[1735221850955,3.18,189.2,189.12,12.13198508]
[1735221851551,3.18,189.2,189.15,2.6461]
[1735221852552,5.8256,189.2,189.15,2.6461]
[1735221852948,12.13198508,189.24,189.12,12.13198508]
[1735221853156,2.645,189.24,189.13,4.8855]
[1735221853357,5.825,189.24,189.15,12.13198508]
[1735221854458,5.825,189.24,189.18,2.6456]
[1735221855258,5.825,189.23,189.18,2.6456]
[1735221855957,1.6684,189.26,189.15,12.13198508]
[1735221856158,3.18,189.25,189.18,12.13198508]
[1735221856357,3.18,189.26,189.22,2.645]
[1735221856563,3.18,189.26,189.18,12.13198508]
[1735221857057,1.6449,189.32,189.24,12.13198508]
[1735221857263,3.16,189.33,189.24,12.13198508]
[1735221857655,3.16,189.33,189.28,2.6442]
[1735221857861,7.30883134,189.35,189.28,2.6442]
[1735221858061,22.02725664,189.36,189.27,12.13198508]
[1735221858062,3.16,189.34,189.27,12.13198508]
[1735221858264,3.16,189.34,189.29,2.6442]
[1735221859165,2.6438,189.32,189.24,12.13198508]
[1735221859755,5.8036,189.34,189.24,12.13198508]
[1735221860562,2.6436,189.34,189.24,12.13198508]
[1735221860768,3.16,189.35,189.3,2.644]
[1735221861370,2.6431,189.37,189.32,2.6437]
[1735221861569,3.16,189.36,189.27,12.13198508]
[1735221862165,5.8032,189.36,189.31,2.6438]
[1735221862363,3.16,189.36,189.27,12.13198508]
[1735221863466,2.6436,189.34,189.29,2.644]
[1735221864068,2.6439,189.32,189.27,2.6444]
[1735221864469,15.29198508,189.36,189.24,12.13198508]
[1735221864674,2.6441,189.3,189.24,2.6449]
[1735221864869,5.8041,189.3,189.24,2.6449]
[1735221865182,5.8041,189.3,189.25,2.6447]
[1735221866477,2.6443,189.28,189.22,12.13198508]
[1735221866675,3.16,189.3,189.21,4.8604]
[1735221867376,3.16,189.3,189.21,3.2716]
[1735221868278,2.6446,189.27,189.21,3.2716]
[1735221868876,2.6446,189.27,189.23,2.645]
[1735221869076,2.6446,189.27,189.21,3.2716]
[1735221869678,2.6446,189.27,189.21,5.9168]
[1735221870075,2.6446,189.27,189.22,2.6451]
[1735221870372,2.6446,189.26,189.21,3.2716]
[1735221870681,3.16,189.25,189.19,12.13198508]
[1735221870981,12.13198508,189.3,189.19,12.13198508]
[1735221870982,3.16,189.24,189.19,12.13198508]
[1735221871476,12.13198508,189.33,189.19,12.13198508]
[1735221871683,3.16,189.32,189.22,12.13198508]
[1735221871979,3.2686,189.34,189.25,12.13198508]
[1735221871980,3.16,189.31,189.25,12.13198508]
[1735221872379,3.16,189.32,189.28,2.6443]
[1735221872573,3.16,189.32,189.22,12.13198508]
[1735221873170,2.6443,189.29,189.24,2.6449]
[1735221874783,2.6445,189.27,189.23,2.645]
[1735221874980,3.16,189.27,189.22,12.13198508]
[1735221876083,3.2686,189.34,189.25,12.13198508]
[1735221876084,3.16,189.31,189.25,12.13198508]
[1735221876383,3.16,189.31,189.22,12.13198508]
[1735221876681,2.6443,189.28,189.23,2.6449]
[1735221876985,3.16,189.31,189.23,2.6449]
[1735221877382,2.6444,189.28,189.23,2.6449]
[1735221877580,3.16,189.31,189.22,2.6451]
[1735221878080,2.6445,189.27,189.21,1.6725]
[1735221878286,3.16,189.31,189.25,2.6447]
[1735221878585,2.6441,189.3,189.22,12.13198508]
[1735221878780,3.16,189.31,189.25,2.6447]
[1735221878983,3.16,189.31,189.22,12.13198508]
[1735221879480,3.16,189.31,189.24,2.6449]
[1735221879677,3.16,189.31,189.22,12.13198508]
[1735221879985,2.6445,189.27,189.23,2.645]
[1735221880180,3.16,189.31,189.23,2.645]
[1735221880486,3.16,189.3,189.23,2.645]
[1735221881085,3.16,189.3,189.22,12.13198508]
[1735221882483,2.6445,189.27,189.23,2.645]
[1735221883386,2.6446,189.26,189.21,4.3177]
[1735221883581,3.16,189.25,189.21,2.6452]
[1735221884178,3.16,189.25,189.16,12.13198508]
[1735221884482,3.16,189.25,189.04,7.26675002]
[1735221884683,1.6258,189.24,189.12,12.13198508]
[1735221885694,2.6455,189.2,189.15,2.646]
[1735221885890,3.16,189.19,189.15,2.646]
[1735221888590,3.16,189.19,189.12,12.13198508]
[1735221888795,3.16,189.19,189.1,1.5222]
[1735221889086,3.16,189.19,189.09,12.13198508]
[1735221889294,3.16,189.19,189.09,14.77888508]
[1735221889789,3.16,189.19,189.07,1.5509]
[1735221889987,2.6465,189.13,189.08,2.6471]
[1735221890190,3.16,189.12,189.08,2.6471]
[1735221890988,3.16,189.12,189.07,1.5509]
[1735221891190,3.16,189.12,189.09,2.6469]
[1735221891694,2.646,189.16,189.11,2.6467]
[1735221891895,3.16,189.15,189.09,12.13198508]
[1735221892895,3.16,189.15,189.12,2.6465]
[1735221893390,3.16,189.15,189.07,1.5509]
[1735221893591,2.6467,189.12,189.07,2.6472]
[1735221895192,5.8061,189.15,189.1,2.6468]
[1735221895493,5.8061,189.15,189.06,12.13198508]
[1735221896489,5.8061,189.15,189.1,2.6468]
[1735221896691,2.6463,189.14,189.1,2.6468]
[1735221898193,3.16,189.15,189.1,2.6468]
[1735221898400,3.16,189.15,189.08,2.647]
[1735221898401,5.8061,189.15,189.08,2.647]
[1735221898596,5.8061,189.15,189.06,12.13198508]
[1735221899094,5.8061,189.15,189.1,2.6467]
[1735221899298,3.16,189.15,189.06,12.13198508]
[1735221899495,3.16,189.15,189.05,1.6426]
[1735221899700,15.29198508,189.15,189.05,2.6474]
[1735221899994,1.6155,189.14,189.05,2.6474]
[1735221900198,2.6469,189.1,189.05,2.6474]
[1735221900394,3.16,189.09,189.05,2.6474]
[1735221900602,3.16,189.09,189.02,65.21938231]
[1735221901300,5.807,189.09,189.04,2.6475]
[1735221901496,3.16,189.09,189.04,2.6475]
[1735221902097,5.807,189.09,189.04,2.6475]
[1735221902494,5.807,189.09,189.02,65.21938231]
[1735221902495,3.16,189.09,189.02,65.21938231]
[1735221902692,15.29198508,189.09,188.96,15.25918508]
[1735221902895,1.6443,189.08,188.96,15.25918508]
[1735221903095,1.6443,189.08,188.98,2.6484]
[1735221903595,1.6443,189.08,188.99,12.13198508]
[1735221903791,5.8073,189.07,188.99,12.13198508]
[1735221905300,3.16,189.07,189.03,2.6478]
[1735221905501,3.16,189.07,188.99,12.13198508]
[1735221905796,5.8074,189.07,189.01,2.648]
[1735221906499,2.6474,189.06,189.01,2.648]
[1735221906699,3.16,189.07,188.99,2.6484]
[1735221906895,3.16,189.07,188.96,15.25918508]
[1735221907090,2.6481,189.02,188.96,15.25918508]
[1735221907293,3.16,189.01,188.96,15.25918508]
[1735221908298,3.16,189.01,188.97,2.6486]
[1735221908498,3.16,189.01,188.96,15.25918508]
[1735221909394,3.16,189.01,188.98,2.6484]
[1735221910498,3.16,189.01,188.97,2.6486]
[1735221910702,3.16,189.01,188.95,1.6444]
[1735221911394,2.6483,189.0,188.95,4.2932]
[1735221911798,3.16,189.01,188.93,12.13198508]
[1735221911999,3.16,189.01,188.9,12.13198508]
[1735221913296,3.16,189.0,188.9,12.13198508]
[1735221913502,3.16,189.0,188.93,12.13198508]
[1735221913801,3.16,189.0,188.96,2.6488]
[1735221914798,3.16,189.0,188.93,12.13198508]
[1735221914998,3.16,189.0,188.9,12.13198508]
[1735221915907,5.8083,189.0,188.95,2.6488]
[1735221916797,3.16,189.0,188.9,12.13198508]
[1735221918201,1.6761,189.05,188.93,12.13198508]
[1735221918202,3.18,188.99,188.93,12.13198508]
[1735221918505,3.18,189.01,188.93,12.13198508]
[1735221920199,3.18,189.01,188.91,12.13198508]
[1735221921406,3.18,189.01,188.98,2.6484]
[1735221922603,3.18,189.01,188.94,2.6489]
[1735221922805,3.18,189.01,188.9,12.13198508]
[1735221923204,2.6482,189.0,188.96,2.6488]
[1735221923704,1.5517,189.06,188.93,12.13198508]
[1735221923705,13.68368508,189.06,188.93,12.13198508]
[1735221923899,3.18,189.05,188.93,12.13198508]
[1735221924301,12.13198508,189.03,188.9,12.13198508]
[1735221924908,12.13198508,189.0,188.89,1.544]
[1735221925106,3.18,188.99,188.89,1.544]
[1735221925306,2.6492,188.94,188.89,2.6497]
[1735221925510,3.18,188.93,188.89,2.6497]
[1735221926107,5.8292,188.93,188.89,2.6497]
[1735221927100,2.6492,188.93,188.89,2.6497]
[1735221927305,3.18,188.92,188.87,2.6499]
[1735221928303,5.8294,188.92,188.87,2.6499]
[1735221928500,3.18,188.92,188.89,2.6497]
[1735221929606,3.18,188.92,188.88,2.6499]
[1735221930911,3.18,188.92,188.84,12.13198508]
[1735221931110,3.18,188.92,188.89,2.6497]
[1735221931312,3.18,188.92,188.84,12.13198508]
[1735221931505,3.18,188.92,188.86,2.6501]
[1735221931812,3.18,188.92,188.84,12.13198508]
[1735221932813,3.18,188.92,188.89,2.6497]
[1735221933812,2.6496,188.91,188.86,2.6501]
[1735221934007,3.18,188.92,188.84,12.13198508]
[1735221934411,3.18,188.92,188.88,2.6498]
[1735221934907,3.18,188.92,188.9,2.6496]
[1735221935504,3.18,188.92,188.84,12.13198508]
[1735221935708,3.18,188.92,188.89,2.6498]
[1735221936209,3.18,188.92,188.82,1.6111]
[1735221936714,2.6499,188.89,188.85,2.6503]
[1735221937315,2.6499,188.88,188.84,2.6504]
[1735221937511,3.18,188.87,188.84,2.6504]
[1735221938712,3.18,188.87,188.86,2.6502]
[1735221940312,3.18,188.87,188.86,10.41099981]
[1735221943118,3.18,188.87,188.85,2.6503]
[1735221943510,2.6497,188.9,188.86,2.6502]
[1735221943715,3.18,188.92,188.88,7.76079981]
[1735221944218,37.09688779,188.96,188.88,7.76079981]
[1735221944417,29.33608798,188.96,188.9,7.76079981]
[1735221944714,29.33608798,188.96,188.92,7.76079981]
[1735221944914,29.33608798,188.96,188.93,2.6492]
[1735221945110,29.33608798,188.96,188.92,7.76079981]
[1735221945316,3.18,188.97,188.92,7.76079981]
[1735221945516,3.18,188.98,188.94,10.40969981]
[1735221945716,3.18,188.98,188.96,7.76079981]
[1735221946114,3.18,188.98,188.92,12.11217846]
[1735221946420,3.18,188.98,188.93,1.6797]
[1735221947518,55.06,189.03,188.93,1.6797]
[1735221947711,3.18,189.02,188.95,12.11217846]
[1735221947911,2.6474,189.07,189.01,2.6481]
[1735221948119,3.18,189.06,188.96,1.6527]
[1735221948714,2.6475,189.05,188.99,2.6484]
[1735221948916,3.18,189.06,188.96,1.6527]
[1735221949422,2.6478,189.04,188.99,2.6484]
[1735221949816,15.29217846,189.06,188.96,1.6527]
[1735221952017,3.18,189.06,188.96,1.6527]
[1735221952219,2.6478,189.03,188.98,2.6485]
[1735221953517,15.29217846,189.06,188.98,2.6485]
[1735221953715,2.648,189.02,188.98,2.6485]
[1735221953921,3.18,189.01,188.98,2.6485]
[1735221955221,2.6477,189.04,188.99,2.6482]
[1735221955519,3.18,189.03,188.99,2.6482]
[1735221956322,5.8278,189.03,188.99,2.6482]
[1735221959021,5.8278,189.03,188.96,1.6527]
[1735221959022,2.6482,189.01,188.96,2.6488]
[1735221960727,2.6482,189.01,188.9,1.6136]
[1735221960728,12.11217846,189.01,188.9,1.6136]
[1735221962026,1.6397,189.02,188.9,1.6136]
[1735221962824,2.6485,188.99,188.94,2.649]
[1735221963025,3.18,188.98,188.94,2.649]
[1735221963215,2.6482,189.01,188.96,2.6488]
[1735221963419,3.18,189.0,188.96,2.6488]
[1735221964025,3.18,189.0,188.92,12.11217846]
[1735221964229,3.18,189.0,188.98,2.6485]
[1735221964730,3.18,189.0,188.99,2.6484]
[1735221967425,3.18,189.04,188.95,12.11217846]
[1735221968223,3.18,189.04,188.99,7.7492484]
[1735221968430,5.8277,189.04,189.0,2.6482]
[1735221969224,3.16,189.03,189.0,2.6482]
[1735221970232,3.16,189.03,188.99,7.7492484]
[1735221970532,3.16,189.03,189.02,2.648]
[1735221970726,3.16,189.04,189.02,2.648]
[1735221972236,10.3966484,189.06,189.02,2.648]
[1735221972434,3.16,189.05,189.02,2.648]
[1735221973529,3.16,189.05,188.99,7.7492484]
[1735221974135,3.16,189.05,189.02,2.6479]
[1735221974934,10.3966484,189.06,189.02,2.6479]
[1735221975136,3.16,189.05,189.02,2.6479]
[1735221975537,5.8076,189.05,189.01,2.6481]
[1735221975729,2.6476,189.05,188.99,7.7492484]
[1735221975931,5.8078,189.04,189.0,2.6482]
[1735221976241,10.9092484,189.04,188.95,7.7492484]
[1735221976641,10.9092484,189.04,188.97,7.7492484]
[1735221977243,2.6478,189.03,188.99,2.6484]
[1735221978143,13.5570484,189.04,189.0,2.6481]
[1735221978842,2.6478,189.03,189.0,2.6481]
[1735221979040,10.9092484,189.04,188.97,7.7492484]
[1735221979243,2.6484,189.0,188.95,7.7492484]
[1735221979440,3.16,188.99,188.9,1.6136]
[1735221979647,7.7492484,188.98,188.91,7.7492484]
[1735221979844,7.7492484,188.96,188.9,1.6136]
[1735221980044,10.3980484,188.96,188.9,1.6136]
[1735221980241,10.3980484,188.96,188.91,7.7492484]
[1735221980439,7.7492484,188.96,188.93,2.6492]
[1735221980636,7.7492484,188.96,188.83,3.16]
[1735221980838,7.7492484,188.96,188.89,7.7492484]
[1735221981037,10.3983484,188.94,188.9,2.6496]
[1735221981243,3.16,188.93,188.89,7.7492484]
[1735221982547,3.16,188.93,188.9,2.6496]
[1735221983143,3.16,188.93,188.91,2.6494]
[1735221983440,3.16,188.93,188.91,7.7492484]
[1735221984550,3.16,188.93,188.92,2.6494]
[1735221988452,3.18,188.97,188.91,7.7492484]
[1735221988653,3.18,188.97,188.94,7.7492484]
[1735221989659,3.18,188.97,188.95,2.6489]
[1735221992055,1.6406,189.03,188.96,7.7492484]
[1735221992056,3.18,189.03,188.96,7.7492484]
[1735221992254,3.18,189.03,188.99,7.7492484]
[1735221992451,3.18,189.03,189.01,7.7492484]
[1735221992656,7.30883134,189.04,189.01,7.7492484]
[1735221992854,7.30883134,189.04,189.03,2.6478]
[1735221993053,7.30883134,189.04,189.03,10.3970484]
[1735221993562,3.18,189.06,189.03,10.3970484]
[1735221993954,3.18,189.06,189.03,2.6478]
[1735221996867,2.6476,189.05,188.96,2.6487]
[1735221997063,2.6476,189.05,188.99,7.7492484]
[1735221997464,3.16,189.06,189.03,7.7492484]
[1735221999066,3.16,189.06,189.04,2.6476]
[1735221999662,3.16,189.06,189.01,7.7492484]
[1735221999868,2.6476,189.05,189.01,2.648]
[1735222000567,10.9092484,189.06,188.99,7.7492484]
[1735222000769,2.6477,189.04,189.0,2.6482]
[1735222001164,2.6475,189.05,189.02,2.6479]
[1735222002765,5.8074,189.06,189.02,2.6479]
[1735222004170,5.8074,189.06,188.99,7.7492484]
[1735222004366,5.8074,189.06,189.03,2.6478]
[1735222004565,3.16,189.06,189.01,7.7492484]
[1735222005569,3.16,189.06,189.04,2.6476]
[1735222005876,5.8072,189.08,189.04,2.6476]
[1735222007963,3.16,189.08,189.01,7.7492484]
[1735222008167,2.6474,189.07,189.03,2.6478]
[1735222010968,5.8074,189.07,189.01,7.7492484]
[1735222011171,5.8074,189.07,189.04,2.6476]
[1735222011875,7.7492484,189.1,189.03,7.7492484]
[1735222012075,3.16,189.09,189.03,7.7492484]
[1735222012279,5.807,189.09,189.05,2.6474]
[1735222012577,3.16,189.08,189.03,7.7492484]
[1735222013081,3.16,189.08,189.05,7.7492484]
[1735222013577,3.16,189.1,189.07,2.6472]
[1735222014175,3.16,189.1,189.05,7.7492484]
[1735222014375,1.6004,189.13,189.09,2.647]
[1735222014681,55.08,189.15,189.07,7.7492484]
[1735222014981,7.7492484,189.12,188.98,3.16]
[1735222015173,7.7492484,189.1,189.03,7.7492484]
[1735222015378,5.8071,189.09,189.05,2.6475]
[1735222016078,3.16,189.09,189.05,2.6474]
[1735222016285,3.16,189.09,189.03,7.7492484]
[1735222017280,3.16,189.09,189.06,2.6473]
[1735222017479,2.6469,189.1,189.06,2.6473]
[1735222017780,2.6469,189.1,188.97,3.16]
[1735222017781,55.08,189.15,189.08,2.647]
[1735222017977,7.7492484,189.13,189.05,7.7492484]
[1735222018371,3.16,189.14,189.05,7.7492484]
[1735222018572,7.7492484,189.12,189.05,7.7492484]
[1735222019381,7.7492484,189.12,188.93,58.06618812]
[1735222019679,2.6468,189.1,189.06,2.6473]
[1735222019883,7.7492484,189.12,189.04,7.7492484]
[1735222020184,3.16,189.14,189.06,7.7492484]
[1735222020685,10.3956484,189.13,189.08,2.6471]
[1735222020891,7.7492484,189.13,189.08,2.6471]
[1735222021483,7.7492484,189.13,189.09,2.6469]
[1735222022181,3.16,189.14,189.09,2.6469]
[1735222022683,2.6464,189.13,189.09,2.6469]
[1735222022882,10.9092484,189.14,189.09,2.6469]
[1735222023087,2.6466,189.12,189.08,2.6471]
[1735222025388,5.8066,189.12,189.08,2.6471]
[1735222027187,2.6469,189.1,189.05,7.7492484]
[1735222027890,2.6469,189.1,189.06,2.6473]
[1735222028389,10.9092484,189.12,189.05,7.7492484]
[1735222028591,2.6473,189.07,189.03,10.3970484]
[1735222028981,7.7492484,189.1,189.03,7.7492484]
[1735222029189,2.6471,189.08,189.04,2.6477]
[1735222029489,2.6471,189.08,189.03,7.7492484]
[1735222029992,3.16,189.07,189.0,4.926]
[1735222030292,2.6476,189.05,189.01,7.7492484]
[1735222030692,2.6476,189.05,189.01,10.3972484]
[1735222032692,2.6477,189.04,189.01,10.3972484]